[Event "Czech Open-GM 2022"]
[Site "Pardubice"]
[Date "2022.07.22"]
[Round "1.1"]
[White "Donchenko, Alexander"]
[Black "Prilleltensky, Matan"]
[Result "1-0"]
[ECO "A06"]
[WhiteElo "2640"]
[BlackElo "2191"]
[Annotator "TA"]
[PlyCount "61"]
[EventDate "2022.07.22"]
[EventType "swiss"]
[EventCountry "CZE"]
[SourceTitle "playchess.com"]
[Source "ChessBase"]
[SourceQuality "1"]
[TimeControl "40/5400+30:1800+30"]

{[%evp 9,61,4,4,0,15,12,15,10,23,0,0,0,0,0,28,19,17,0,18,0,0,0,46,44,47,47,45,41,39,0,47,37,57,0,0,0,21,31,49,62,64,68,90,85,101,110,110,100,321,301,411,403,457,422]} 1. Nf3 {[%emt 0:00:02]} d5 {[%emt 0:00:11]} 2. g3 {[%emt 0:00:27]} c6 {[%emt 0:00:15]} 3. Bg2 {[%emt 0:00:23]} Bg4 {[%emt 0:00:28]} 4. h3 {[%emt 0:00:24]} Bh5 {[%emt 0:01:17]} 5. O-O {[%emt 0:00:27]} e6 {[%emt 0:00:25]} 6. c4 {[%emt 0:01:00] A07: Réti Opening: New York and Capablanca Systems.} Nf6 {[%emt 0:01:03]} 7. d4 {[%emt 0:02:17]} Nbd7 {[%emt 0:02:36]} 8. cxd5 {[%emt 0:02:39] The position is equal.} exd5 {[%emt 0:00:45]} 9. Ne5 $1 {[%emt 0:01:00][%mdl 4] is currently scoring better than 9.Qb3.} Ne4 {[%emt 0:08:13]} 10. Bxe4 {[%emt 0:00:31]} dxe4 {[%emt 0:05:40]} 11. Nc3 {[%emt 0:01:22][%cal Bb1c3,Bc3e4,Be4d6][%mdl 32]} Nxe5 {[%emt 0:07:16]} 12. dxe5 {[%emt 0:00:15]} Bg6 {[%emt 0:08:24] [#]} 13. Be3 $146 {[%emt 0:12:57] Inhibits Bc5.} ({Predecessor:} 13. Qb3 Qd7 14. Be3 Be7 15. Rad1 Qc7 16. Qc4 Qxe5 17. Bd4 Qf5 18. Qb3 b6 19. Qc4 {0-1 (43) Svane,R (2637)-Daggupati,B (2443) Chess.com INT 2022}) 13... Qc8 {[%emt 0:02:02]} 14. Kh2 {[%emt 0:05:02]} Be7 {[%emt 0:03:08]} 15. Qd4 {[%emt 0:04:16]} O-O {[%emt 0:08:20]} (15... Qd7 $11) 16. Nxe4 $14 {[%emt 0:00:50]} Rd8 {[%emt 0:01:49]} 17. Nd6 {[%emt 0:00:24]} Qe6 {[%emt 0:02:36][%cal Re7d6]} 18. Rfd1 {[%emt 0:00:32]} f6 {[%emt 0:03:25]} 19. Qc3 {[%emt 0:05:40]} Bxd6 {[%emt 0:07:35]} (19... Rd7 $11) 20. exd6 {[%emt 0:00:21]} Be4 {[%emt 0:05:32]} ({Weaker is} 20... Rxd6 21. Rxd6 Qxd6 22. Qb3+ Bf7 23. Qxb7 $16) 21. Bc5 {[%emt 0:05:25]} (21. Qb3 $14 Bd5 22. Qxb7) 21... b6 $11 {[%emt 0:02:44]} 22. Ba3 {[%emt 0:01:07]} c5 {[%emt 0:01:48]} 23. b4 {[%emt 0:01:58]} cxb4 {[%emt 0:02:20]} 24. Qxb4 {[%emt 0:02:16]} Bf5 {[%emt 0:02:41][%csl LRe2,LRh3]} 25. Qd2 {[%emt 0:08:16] White is more active.} Bxh3 {[%emt 0:01:31] [#]} 26. f3 $1 {[%emt 0:00:19] And now g4 would win.} Bf5 {[%emt 0:02:02]} 27. e4 {[%emt 0:02:12]} Bg6 {[%emt 0:01:24]} 28. d7 {[%emt 0:08:03] Against Rac8} Rab8 $2 {[%emt 0:03:30] [#]} (28... Bf7 $16) 29. Rac1 $1 $18 {[%emt 0:02:46][%cal Ba1c1,Bc1c7,Bc7a7][%mdl 32]} h5 {[%emt 0:05:59]} (29... Rb7 $2 30. Rc8 Rxc8 31. dxc8=N Qxc8 32. Qd5+ Bf7 33. Qd8+ Qxd8 34. Rxd8+ Be8 35. Rxe8+) 30. Rc7 {[%emt 0:03:46] Inhibits Rb7.} a5 {[%emt 0:03:31]} 31. Ra7 {[%emt 0:01:30] Weighted Error Value: White=0.06 (flawless) /Black=0.28 (precise)} 1-0

[Event "Czech Open-GM 2022"]
[Site "Pardubice"]
[Date "2022.07.22"]
[Round "1.2"]
[White "Brozka, Karel"]
[Black "Livaic, Leon"]
[Result "1/2-1/2"]
[ECO "A61"]
[WhiteElo "2188"]
[BlackElo "2576"]
[Annotator "TA"]
[PlyCount "115"]
[EventDate "2022.07.22"]
[EventType "swiss"]
[EventCountry "CZE"]
[SourceTitle "playchess.com"]
[Source "ChessBase"]
[SourceQuality "1"]
[TimeControl "40/5400+30:1800+30"]

{[%evp 24,115,43,39,54,50,50,17,33,22,78,66,70,41,67,60,62,64,90,81,75,66,146,134,160,33,192,214,198,212,190,190,257,212,256,245,261,254,255,260,256,246,238,256,266,270,279,257,260,253,248,141,141,142,136,127,125,131,133,105,124,45,39,62,163,90,250,233,235,211,204,203,264,262,454,426,447,447,447,402,371,0,0,0,0,0,0,0,0,0,1,0,0,0]} 1. d4 {[%emt 0:00:03]} Nf6 {[%emt 0:00:17]} 2. c4 {[%emt 0:00:15]} e6 {[%emt 0:00:14]} 3. Nf3 {[%emt 0:00:12]} c5 {[%emt 0:00:48]} 4. d5 {[%emt 0:01:11]} d6 {[%emt 0:00:09]} 5. Nc3 {[%emt 0:01:36]} exd5 {[%emt 0:00:06]} 6. cxd5 {[%emt 0:00:13]} g6 {[%emt 0:00:06]} 7. e4 {[%emt 0:00:41]} a6 {[%emt 0:00:31]} 8. a4 {[%emt 0:01:16]} Bg4 {[%emt 0:00:15]} 9. Be2 {[%emt 0:02:59]} Bxf3 {[%emt 0:00:06]} 10. Bxf3 {[%emt 0:01:18]} Nbd7 {[%emt 0:00:50]} 11. O-O {[%emt 0:02:38]} Bg7 {[%emt 0:00:20]} 12. Bg5 {[%emt 0:05:07]} O-O {[%emt 0:00:21]} 13. Qc2 {[%emt 0:01:14]} Rb8 {[%emt 0:09:51] A75: Modern Benoni: Classical: 9...a6 10 a4 Bg4.} 14. Be2 {[%emt 0:04:02]} Re8 {[%emt 0:04:38][%cal Oc5c4]} 15. Rfe1 {[%emt 0:02:41]} Qc7 {[%emt 0:04:48] [#]} 16. a5 $146 {[%emt 0:11:28]} ({Predecessor:} 16. Bh4 c4 17. a5 b5 18. axb6 Rxb6 19. Ra2 Reb8 20. h3 Rb4 21. Bg3 Nc5 22. e5 dxe5 23. Bxc4 Rxc4 24. Bxe5 {0-1 (32) Liew,C (2297)-Klasan,V (2342) Istanbul 2012}) 16... Qc8 {[%emt 0:12:51]} (16... c4 $11) 17. Bf4 {[%emt 0:06:36] White is more active. A strong pair of Bishops.} Ne5 {[%emt 0:00:07][%cal Bd7e5,Be5g4,Bg4e3][%mdl 32]} 18. Bg3 {[%emt 0:10:17]} b5 {[%emt 0:00:42]} 19. axb6 $1 {[%emt 0:00:09]} Rxb6 {[%emt 0:00:07]} 20. f4 {[%emt 0:00:50]} Neg4 {[%emt 0:01:15] [#]} 21. h3 $1 {[%emt 0:13:04]} Ne3 {[%emt 0:00:55]} 22. Qd3 {[%emt 0:00:26][%csl LRa6,LRe3]} Rxb2 {[%emt 0:18:18]} 23. Qxe3 $16 {[%emt 0:02:31] Hoping for e5.} Rb3 {[%emt 0:03:23][%cal Of6e4] Strongly threatening ...Nxe4!} 24. Qd2 {[%emt 0:22:56]} ({And not} 24. Rxa6 Nxe4 25. Qxe4 Bxc3 $17) ({Only move:} 24. Bxa6 $16 Qd8 25. Bh4) 24... Nxe4 $2 {[%emt 0:02:41]} (24... Nh5 $1 $14 25. Bxh5 (25. Bxa6 Bxc3 26. Qxc3 Rxc3 $17) 25... Bxc3) 25. Nxe4 $18 {[%emt 0:01:07]} Rxe4 {[%emt 0:06:01]} 26. Bxa6 {[%emt 0:03:08]} Rxe1+ {[%emt 0:03:36]} 27. Qxe1 {[%emt 0:02:44]} Qb8 {[%emt 0:01:52]} (27... Bd4+ $142 28. Kh2 Qf5) 28. Rc1 {[%emt 0:00:45]} Bb2 {[%emt 0:03:02]} 29. Rd1 {[%emt 0:01:02]} Bc3 {[%emt 0:01:03]} 30. Qe4 {[%emt 0:00:56]} Rb4 {[%emt 0:01:08]} 31. Qe2 {[%emt 0:01:41]} Rb2 {[%emt 0:01:14]} 32. Qc4 {[%emt 0:00:28]} Bd4+ {[%emt 0:01:25]} 33. Kh2 {[%emt 0:00:06]} Qa8 {[%emt 0:00:44]} 34. f5 {[%emt 0:01:05]} Qd8 {[%emt 0:04:55]} 35. fxg6 {[%emt 0:00:29]} hxg6 {[%emt 0:00:05]} 36. Rf1 {[%emt 0:00:42]} Qg5 {[%emt 0:00:13]} 37. Qd3 {[%emt 0:00:20]} (37. Re1 $18) 37... Qxd5 $16 {[%emt 0:02:01][%csl Gb2][%cal Rd5g2]} 38. Qf3 {[%emt 0:00:31]} Qxf3 {[%emt 0:00:34]} 39. Rxf3 {[%emt 0:00:05] Black must now prevent Bc4.} d5 {[%emt 0:00:04] Against Bc4} 40. Rd3 {[%emt 0:00:54]} f5 {[%emt 0:02:43]} 41. Bc8 {[%emt 0:06:22]} Kf7 {[%emt 0:00:04] Against Be6+} 42. Bd7 {[%emt 0:00:58]} (42. Rd1 $16) 42... Rb1 $14 {[%emt 0:09:03]} 43. Bf4 {[%emt 0:04:23]} Bg1+ {[%emt 0:03:26]} (43... Ke7 $14 44. Bc6 Rf1) 44. Kg3 $18 {[%emt 0:00:26]} d4 {[%emt 0:02:16]} (44... Kf6 $16 {was necessary.}) 45. Bc6 {[%emt 0:05:58]} Kf6 {[%emt 0:01:51]} 46. Bd5 {[%emt 0:04:25] Threatens to win with Ra3.} g5 {[%emt 0:00:25] [#]} 47. Bc7 {[%emt 0:02:11]} Rc1 {[%emt 0:02:16]} 48. Ra3 {[%emt 0:02:31]} c4 $2 {[%emt 0:00:18]} (48... Be3 {is a better defense.} 49. Ra6+ Ke7 50. Bd6+ Kd7) 49. Bd8+ {[%emt 0:01:04]} Ke5 {[%emt 0:00:36]} 50. Bxg5 {[%emt 0:00:42]} Be3 {[%emt 0:02:39]} 51. Bxe3 {[%emt 0:02:44]} dxe3 {[%emt 0:00:01]} 52. Bxc4 $2 {[%emt 0:02:49][%mdl 4096] Endgame KRB-KR} f4+ $11 {[%emt 0:01:09] The position is equal.} 53. Kf3 {[%emt 0:00:19]} Rxc4 {[%emt 0:00:02]} 54. g3 {[%emt 0:00:46]} fxg3 {[%emt 0:00:06]} 55. Rxe3+ {[%emt 0:00:06]} Kf6 {[%emt 0:00:06]} 56. Kxg3 {[%emt 0:00:09]} Kg7 {[%emt 0:00:05]} 57. Ra3 {[%emt 0:00:28]} Kh7 {[%emt 0:00:06]} 58. h4 {[%emt 0:00:27] Black escapes into a draw.  Weighted Error Value: White=0.29 (precise) /Black=0.29 (precise)} 1/2-1/2

[Event "Czech Open-GM 2022"]
[Site "Pardubice"]
[Date "2022.07.22"]
[Round "1.3"]
[White "Plat, Vojtech"]
[Black "Johnson, Donald"]
[Result "1-0"]
[ECO "C45"]
[WhiteElo "2554"]
[BlackElo "2186"]
[Annotator "TA"]
[PlyCount "261"]
[EventDate "2022.07.22"]
[EventType "swiss"]
[EventCountry "CZE"]
[SourceTitle "playchess.com"]
[Source "ChessBase"]
[SourceQuality "1"]
[TimeControl "40/5400+30:1800+30"]

{[%evp 24,261,0,0,0,0,0,0,0,0,0,0,0,-18,-32,-28,-33,-30,-32,-41,-8,-8,-8,-19,-6,-17,0,-118,-120,-137,-136,-143,-142,-142,-142,-135,-53,-47,-56,-62,-62,-110,-119,-119,-110,-134,-134,-148,-147,-139,-113,-116,0,0,0,0,0,0,0,0,0,-2,0,0,0,-8,-8,-8,-8,-8,0,0,0,0,0,0,-2,-8,-2,-2,-2,-2,-2,-2,-2,-8,-8,-8,-8,-8,-8,-8,0,-14,-14,-14,0,0,0,0,0,0,8,8,8,0,8,8,42,35,33,33,283,283,283,283,283,283,283,283,283,283,856,283,283,283,283,283,283,283,283,283,283,283,283,283,283,283,283,0,283,283,283,283,283,283,283,283,283,283,283,283,283,283,283,283,283,283,283,283,283,283,283,283,283,283,283,283,283,283,283,283,283,283,283,283,283,283,283,283,283,283,283,283,283,283,283,283,283,283,283,283,283,283,294,287,287,267,280,291,29972,29973,29973,29975,29975,29975,29977,298,29978,29979,29979,218,29979,29980,29980,29981,29981,29980,29980,29981,29981,29982,29982,29983,29983,29984,29984,29985,29985,29986,29986,29987,29987,29988,29988,29989,29989,29990,29990,29991]} 1. e4 {[%emt 0:00:03]} e5 {[%emt 0:06:03]} 2. Nf3 {[%emt 0:00:31]} Nc6 {[%emt 0:00:49]} 3. d4 {[%emt 0:00:17]} exd4 {[%emt 0:00:06]} 4. Nxd4 {[%emt 0:00:03]} Nf6 {[%emt 0:00:08]} 5. Nxc6 {[%emt 0:00:05]} bxc6 {[%emt 0:00:02]} 6. e5 {[%emt 0:00:07]} Qe7 {[%emt 0:00:05]} 7. Qe2 {[%emt 0:00:04]} Nd5 {[%emt 0:00:03]} 8. c4 {[%emt 0:00:05]} Ba6 {[%emt 0:00:16]} 9. b3 {[%emt 0:00:12]} g6 {[%emt 0:00:36]} 10. g3 {[%emt 0:00:05]} Bg7 {[%emt 0:00:18]} 11. Bb2 {[%emt 0:00:05]} O-O {[%emt 0:00:16]} 12. Bg2 {[%emt 0:00:04]} Rae8 {[%emt 0:00:26]} 13. O-O $1 {[%emt 0:00:05]} Bxe5 {[%emt 0:00:10]} 14. Qxe5 {[%emt 0:00:03]} Qxe5 {[%emt 0:00:10]} 15. Bxe5 {[%emt 0:00:01]} Rxe5 {[%emt 0:00:10]} 16. cxd5 {[%emt 0:00:03]} Bxf1 {[%emt 0:00:08]} 17. Kxf1 {[%emt 0:00:01]} cxd5 {[%emt 0:00:05]} 18. Nc3 (18. f4 $5 {[%cal Rf4e5]} Re3 19. Bxd5 $11) 18... c6 19. Rc1 {[%emt 0:00:22]} Rfe8 {[%emt 0:05:59]} 20. Bf3 {[%emt 0:00:59]} Kf8 {[%emt 0:01:08]} 21. Na4 {[%emt 0:00:05]} Ke7 {[%emt 0:01:19]} 22. Nc5 {[%emt 0:00:04]} Kd6 {[%emt 0:01:56]} 23. Nd3 {[%emt 0:00:12]} R5e7 {[%emt 0:04:04]} 24. b4 $1 {[%emt 0:00:57]} Ra8 {[%emt 0:16:24]} 25. Rc5 {[%emt 0:11:07]} (25. Rc3 $11 {keeps the balance.}) 25... a5 $1 $17 {[%emt 0:07:07]} 26. Rxa5 {[%emt 0:04:33]} Rxa5 {[%emt 0:00:12]} 27. bxa5 {[%emt 0:00:02]} Re8 {[%emt 0:01:53]} 28. a6 {[%emt 0:00:42]} Ra8 {[%emt 0:03:06][%mdl 1024] Black has strong compensation.} 29. Nb4 {[%emt 0:00:06]} Kc5 {[%emt 0:11:44]} (29... Rb8 $1 $17 {[%cal Rb8b4]} 30. Bd1 Rb5) 30. a3 $1 $15 {[%emt 0:00:47]} Kc4 {[%emt 0:05:32]} 31. Be2+ {[%emt 0:01:40]} Kb3 {[%emt 0:02:22]} 32. Nd3 {[%emt 0:00:03]} (32. Ke1 $1 $15) 32... Kxa3 $17 {[%emt 0:01:34]} 33. Ne5 {[%emt 0:00:05][%csl LRd7,LRf7]} Ra7 $1 {[%emt 0:01:58]} 34. Nxf7 {[%emt 0:00:08]} Kb4 {[%emt 0:03:24]} 35. Ne5 {[%emt 0:03:07]} c5 $1 {[%emt 0:09:11] Threatens to win with ...c4.} 36. Nd3+ {[%emt 0:00:08]} Kb5 {[%emt 0:02:34] Hoping for ...c4.} 37. Nf4+ {[%emt 0:00:19]} Kc6 {[%emt 0:05:08]} (37... c4 $1 $17 {aiming for ...d4.} 38. Bf3 (38. Nxd5 Kc5 $17) 38... Kc5) 38. Bf3 $11 {[%emt 0:00:25]} Rxa6 {[%emt 0:00:28]} 39. Bxd5+ {[%emt 0:00:45]} Kd6 {[%emt 0:01:08]} 40. Bg8 {[%emt 0:01:07]} g5 {[%emt 0:01:49]} 41. Ng2 {[%emt 0:31:23]} Ke5 {[%emt 0:36:31]} 42. Ne3 {[%emt 0:02:51]} h6 {[%emt 0:00:00]} 43. Ke2 {[%emt 0:00:00]} Kd4 {[%emt 0:00:00]} 44. Kd2 {[%emt 0:00:00]} Rf6 {[%emt 0:00:00]} 45. Ke2 {[%emt 0:00:00]} Rf8 {[%emt 0:00:00]} 46. Bc4 {[%emt 0:00:00]} Re8 {[%emt 0:00:00][%cal Oe8e3]} 47. Bb5 {[%emt 0:00:00]} Re7 {[%emt 0:00:00]} 48. Kf1 {[%emt 0:00:00] Black must now prevent Nf5+.} Rh7 {[%emt 0:00:00]} 49. Bc4 {[%emt 0:00:00]} Rh8 {[%emt 0:00:00]} 50. h3 {[%emt 0:00:00]} Re8 {[%emt 0:00:00] Strongly threatening ...Rxe3.} 51. Bb5 {[%emt 0:00:00]} Rd8 {[%emt 0:00:08]} 52. Nf5+ {[%emt 0:00:00]} Kc3 {[%emt 0:01:37]} 53. Nd6 $1 {[%emt 0:00:00]} Kb4 {[%emt 0:00:31]} 54. Ke2 {[%emt 0:00:00]} Rb8 {[%emt 0:00:34]} 55. Bd3 {[%emt 0:00:00]} (55. Bxd7 Rd8 56. Nf7 Rxd7 $19) 55... Rb6 {[%emt 0:00:48]} 56. Nc4 {[%emt 0:00:00]} Re6+ {[%emt 0:00:39]} 57. Ne3 $1 {[%emt 0:00:00]} d5 {[%emt 0:00:48] ...d4 is the strong threat.} 58. Kd2 {[%emt 0:00:00]} Rd6 {[%emt 0:01:03] Black wants to play ...c4.} 59. Nc2+ {[%emt 0:00:00]} Kb3 {[%emt 0:00:38] And now ...Rf6 would win.} 60. f4 $1 {[%emt 0:00:00]} c4 {[%emt 0:02:38]} 61. Bh7 {[%emt 0:00:00]} gxf4 {[%emt 0:04:15]} 62. gxf4 {[%emt 0:00:00]} Rf6 {[%emt 0:00:26]} 63. f5 {[%emt 0:00:00]} Ra6 {[%emt 0:00:39]} 64. Bg6 {[%emt 0:01:23]} Kb2 {[%emt 0:00:35]} 65. Bf7 {[%emt 0:00:31]} Rb6 {[%emt 0:00:43]} 66. Ne3 {[%emt 0:02:10]} (66. Bxd5 $2 c3+ 67. Kd3 Rd6 $19) 66... c3+ $1 {[%emt 0:00:27]} 67. Kd3 {[%emt 0:00:05]} Rf6 $2 {[%emt 0:00:38]} ({Black should play} 67... Rb3 $1 $14 68. Nc2 (68. Nd1+ Kb1 $11) 68... Rb6) 68. Be6 $18 {[%emt 0:02:42]} (68. Bxd5 Rxf5 69. Nd1+ (69. Nxf5 $2 {perishes.} c2 $19) 69... Ka3 70. Nxc3 Kb4 $16) 68... d4 {[%emt 0:00:16]} 69. Kxd4 {[%emt 0:04:04] Threatening mate with Nd1+.} ({Less strong is} 69. Nc2 Rf8 $14) 69... c2 {[%emt 0:00:08] [#] Inhibits Nd1+.} 70. Nxc2 $1 {[%emt 0:00:01][%mdl 512]} Kxc2 {[%emt 0:00:01][%mdl 4096] Endgame KR-KB} 71. Ke5 {[%emt 0:00:03]} Rf8 {[%emt 0:00:20]} 72. f6 {[%emt 0:00:02]} Kd3 $2 {[%emt 0:01:29]} (72... h5 73. f7 Kd3) 73. f7 $2 {[%emt 0:00:02]} (73. Bg4 Rh8 74. f7) 73... h5 {[%emt 0:00:32]} 74. Kf6 {[%emt 0:01:18]} Ke4 {[%emt 0:00:40]} 75. Kg7 {[%emt 0:00:23]} Rd8 {[%emt 0:00:28]} 76. f8=Q {[%emt 0:00:08]} Rxf8 {[%emt 0:00:00]} 77. Kxf8 {[%emt 0:00:11] KB-KP} h4 {[%emt 0:00:35]} 78. Kf7 {[%emt 0:00:27]} Kd4 {[%emt 0:00:33]} 79. Kf6 {[%emt 0:00:16] White threatens Kg5 and mate.} Kc5 {[%emt 0:00:07]} 80. Bg4 {[%emt 0:01:49]} Kd6 {[%emt 0:00:12]} 81. Be6 $2 {[%emt 0:00:32]} (81. Kf5 $18) 81... Kc7 $2 {[%emt 0:00:43][%mdl 8192]} (81... Kc5 $11 {and Black stays safe.} 82. Ke5 Kb4) 82. Ke7 {[%emt 0:00:18]} Kc6 {[%emt 0:00:19]} 83. Bb3 {[%emt 0:00:04]} Kc7 {[%emt 0:00:10]} 84. Bd5 {[%emt 0:00:04]} Kc8 {[%emt 0:00:21]} 85. Kd6 {[%emt 0:00:23]} Kd8 {[%emt 0:00:21]} 86. Bc6 {[%emt 0:01:03]} Kc8 {[%emt 0:00:01]} 87. Ke7 {[%emt 0:01:57]} Kc7 {[%emt 0:00:19]} 88. Bd7 {[%emt 0:00:16]} Kb8 {[%emt 0:00:11]} 89. Kd6 {[%emt 0:00:12]} Kb7 {[%emt 0:00:09]} 90. Bg4 {[%emt 0:01:34]} Kb8 {[%emt 0:01:24]} 91. Kc6 {[%emt 0:00:34]} Ka7 {[%emt 0:00:13]} 92. Bc8 {[%emt 0:00:34]} Kb8 {[%emt 0:00:17]} 93. Kd7 {[%emt 0:00:07]} Ka7 {[%emt 0:00:06]} 94. Kc7 {[%emt 0:00:03]} Ka8 {[%emt 0:00:04]} 95. Bg4 {[%emt 0:02:31]} Ka7 {[%emt 0:00:00]} 96. Bf3 {[%emt 0:00:41]} Ka6 {[%emt 0:00:01]} 97. Kb8 {[%emt 0:00:07]} Kb5 {[%emt 0:01:44]} 98. Kb7 {[%emt 0:00:05]} Kc5 {[%emt 0:02:20]} 99. Kc7 {[%emt 0:00:04]} Kb5 {[%emt 0:01:13]} 100. Bb7 {[%emt 0:00:04]} Kc4 {[%emt 0:00:49]} 101. Kc6 {[%emt 0:00:16]} Kb4 {[%emt 0:00:23]} 102. Ba6 $1 {[%emt 0:00:06]} Ka5 {[%emt 0:00:05]} 103. Be2 {[%emt 0:01:06]} Kb4 {[%emt 0:00:36]} 104. Kd5 {[%emt 0:00:35]} Ka5 {[%emt 0:01:07]} 105. Kc5 {[%emt 0:00:14]} Ka4 {[%emt 0:00:01]} 106. Kb6 {[%emt 0:00:36]} Kb3 {[%emt 0:01:10]} 107. Kb5 {[%emt 0:00:11]} Kc3 {[%emt 0:00:13]} 108. Kc5 $1 {[%emt 0:00:05]} Kd2 {[%emt 0:00:14]} 109. Ba6 {[%emt 0:02:18] White wants to mate with Kd4.} Ke3 {[%emt 0:00:23]} 110. Kd5 {[%emt 0:00:03] Intending Ke5 and mate.} Kf4 {[%emt 0:00:13]} 111. Bd3 {[%emt 0:00:03]} Kg3 $2 {[%emt 0:00:54]} (111... Kf3 $18 112. Ke5 Kg2 113. Bf5 Kf3 114. Be6 Ke3 115. Kf5 Kd3 116. Bg8 Kd4) 112. Bf5 {[%emt 0:00:06]} Kf4 {[%emt 0:00:10]} 113. Ke6 $1 {[%emt 0:00:03]} Kg5 {[%emt 0:00:32]} 114. Ke5 {[%emt 0:00:04]} Kh6 {[%emt 0:01:23]} 115. Kf6 {[%emt 0:00:04]} Kh5 {[%emt 0:00:01]} 116. Kg7 {[%emt 0:03:12]} Kg5 {[%emt 0:00:02]} 117. Bg6 {[%emt 0:03:45]} Kf4 {[%emt 0:00:02]} 118. Kf6 {[%emt 0:00:03]} Kg3 {[%emt 0:00:27]} 119. Bf5 {[%emt 0:00:03]} Kf4 {[%emt 0:00:02]} 120. Bd3 {[%emt 0:01:35]} Kg3 {[%emt 0:00:37] [#]} 121. Bf1 $1 {[%emt 0:00:00]} Kf3 {[%emt 0:01:02]} 122. Kg5 {[%emt 0:04:07]} Ke4 {[%emt 0:00:15]} 123. Kxh4 {[%emt 0:00:05]} Kf5 {[%emt 0:00:38] [#]} 124. Kh5 $1 {[%emt 0:00:03]} Kf6 {[%emt 0:00:02]} 125. Kh6 {[%emt 0:00:06]} Kf7 {[%emt 0:00:01]} 126. Bc4+ {[%emt 0:00:16]} Kf6 {[%emt 0:00:11]} 127. h4 {[%emt 0:00:08]} Kf5 {[%emt 0:00:00]} 128. h5 {[%emt 0:00:07]} Kf6 {[%emt 0:00:02]} 129. Ba2 {[%emt 0:00:04]} Kf5 {[%emt 0:00:03]} 130. Kg7 {[%emt 0:00:03]} Kg5 {[%emt 0:00:05]} 131. h6 {[%emt 0:00:04]} 1-0